bitfinex-derivatives/quotes_SOLF0:USTF0_20250329
["timestamp","ask_amount","ask_price","bid_price","bid_amount"]
[1743266224125,0.05512542,126.4,126.39,28.26]
[1743266226231,7.96942542,126.4,126.39,28.26]
[1743266226427,9.13892167,126.4,126.37,28.31889769]
[1743266226626,9.08379625,126.39,126.37,28.31889769]
[1743266227327,9.13892167,126.4,126.37,36.23509769]
[1743266227530,0.05512542,126.4,126.37,45.31889394]
[1743266229129,7.96982542,126.4,126.37,36.23509769]
[1743266229532,0.05512542,126.4,126.38,7.9152]
[1743266229829,0.05512542,126.4,126.37,37.40269394]
[1743266230627,0.05512542,126.4,126.39,7.915]
[1743266232640,0.05512542,126.4,126.39,16.99879625]
[1743266232939,270.06379625,126.46,126.39,9.08379625]
[1743266233139,9.08379625,126.45,126.4,37.34379625]
[1743266233441,7.9126,126.43,126.4,28.26]
[1743266233940,7.9631308,126.43,126.4,36.23490847]
[1743266234136,7.9133,126.42,126.4,28.32060847]
[1743266236636,7.9633308,126.43,126.4,36.23480847]
[1743266237141,0.0505308,126.43,126.4,28.32060847]
[1743266237741,7.9131,126.42,126.4,28.32060847]
[1743266237938,0.0505308,126.43,126.4,28.32060847]
[1743266238241,7.9633308,126.43,126.4,36.23460847]
[1743266240145,7.9132,126.42,126.4,28.32060847]
[1743266242146,7.9132,126.42,126.4,36.23490847]
[1743266242445,7.9132,126.42,126.4,28.32060847]
[1743266244145,9.08379625,126.41,126.33,154.13843969]
[1743266244348,9.08379625,126.34,126.33,154.13843969]
[1743266244846,17.00189625,126.34,126.33,131.5786602]
[1743266245045,9.08379625,126.35,126.33,131.5786602]
[1743266245442,9.13515658,126.35,126.33,131.63658214]
[1743266246844,7.9181,126.34,126.33,131.63658214]
[1743266247145,7.9181,126.34,126.33,0.05792194]
[1743266248144,7.96906033,126.35,126.33,0.05792194]
[1743266248345,7.96906033,126.35,126.34,28.26]
[1743266248840,0.05136033,126.35,126.34,28.26]
[1743266249245,7.96886033,126.35,126.34,28.26]
[1743266252354,7.9181,126.34,126.33,0.05792194]
[1743266252553,7.9181,126.34,126.33,28.31792194]
[1743266256750,9.08379625,126.34,126.29,28.26]
[1743266256956,9.08379625,126.3,126.28,28.26]
[1743266257256,7.9218,126.29,126.27,28.26]
[1743266257750,9.08379625,126.32,126.28,9.08379625]
[1743266257955,0.05576204,126.29,126.28,9.08379625]
[1743266258259,7.9203,126.31,126.28,9.08379625]
[1743266258559,0.05601156,126.3,126.28,9.08379625]
[1743266259557,0.05601156,126.3,126.28,17.00549625]
[1743266260261,0.05601156,126.3,126.29,17.00499625]
[1743266260560,9.08379625,126.35,126.29,9.08379625]
[1743266260758,9.08379625,126.36,126.3,28.26]
[1743266260952,9.08379625,126.31,126.3,28.26]
[1743266261463,17.00379625,126.31,126.3,28.26]
[1743266263465,7.9206,126.3,126.29,0.05722469]
[1743266263659,17.00439625,126.3,126.29,0.05722469]
[1743266264365,9.08379625,126.3,126.22,9.08379625]
[1743266264665,9.08379625,126.27,126.23,28.26]
[1743266264861,7.9236,126.26,126.24,28.26]
[1743266265464,7.98072895,126.26,126.24,28.31178531]
[1743266266670,0.05712895,126.26,126.24,28.31178531]
[1743266266871,0.05712895,126.26,126.24,36.23598531]
[1743266268265,0.05712895,126.26,126.25,7.9238]
[1743266268473,9.08379625,126.31,126.25,9.08379625]
[1743266268671,9.08379625,126.31,126.26,9.08379625]
[1743266268968,9.08379625,126.31,126.27,28.26]
[1743266269468,7.9206,126.3,126.27,36.1821]
[1743266269666,7.97488827,126.3,126.28,0.05803386]
[1743266269872,0.05428827,126.3,126.28,0.05803386]
[1743266270370,7.97488827,126.3,126.28,0.05803386]
[1743266273568,7.97488827,126.3,126.28,7.97983386]
[1743266274274,7.97488827,126.3,126.28,0.05803386]
[1743266276377,7.97488827,126.3,126.28,7.97983386]
[1743266277578,7.97488827,126.3,126.28,0.05803386]
[1743266279982,17.05868452,126.3,126.28,0.05803386]
[1743266280484,7.9212,126.29,126.28,0.05803386]
[1743266281577,17.05898452,126.3,126.28,0.05803386]
[1743266282182,7.9212,126.29,126.28,0.05803386]
[1743266283179,17.05888452,126.3,126.28,28.31803386]
[1743266285280,0.05428827,126.3,126.29,7.9212]
[1743266285480,9.08379625,126.34,126.29,9.08379625]
[1743266285681,9.08379625,126.35,126.3,9.08379625]
[1743266285880,17.00129625,126.35,126.31,36.1795]
[1743266286575,0.05436121,126.34,126.32,7.97354661]
[1743266286774,9.13815746,126.34,126.32,0.05414661]
[1743266287085,9.13815746,126.34,126.32,7.97314661]
[1743266287583,9.13815746,126.34,126.32,0.05414661]
[1743266288182,9.13815746,126.34,126.32,7.97344661]
[1743266288477,17.05625746,126.34,126.32,0.05414661]
[1743266290985,17.05625746,126.34,126.32,7.97354661]
[1743266291485,9.13815746,126.34,126.32,7.97354661]
[1743266296092,17.05625746,126.34,126.32,7.97354661]
[1743266296689,9.13815746,126.34,126.32,7.97354661]
[1743266296993,0.05436121,126.34,126.32,7.97354661]
[1743266297993,7.97256121,126.34,126.32,7.97354661]
[1743266298291,7.97256121,126.34,126.32,0.05414661]
[1743266299090,7.97256121,126.34,126.32,7.97354661]
[1743266300194,0.05436121,126.34,126.32,7.97354661]
[1743266301295,0.05436121,126.34,126.33,7.9187]
[1743266301699,0.05436121,126.34,126.32,0.05414661]
[1743266302200,0.05436121,126.34,126.32,7.97324661]
[1743266303799,0.05436121,126.34,126.33,7.9187]
[1743266304005,0.05436121,126.34,126.33,17.00249625]
[1743266305399,16.99909625,126.39,126.37,7.9162]
[1743266305601,7.9153,126.39,126.37,36.1762]
[1743266305801,7.9153,126.39,126.37,28.26]
[1743266306702,7.96530354,126.39,126.37,28.31537282]
[1743266310203,7.9156,126.38,126.37,28.31537282]
[1743266311399,7.9172,126.36,126.33,17.00239625]
[1743266311599,7.9172,126.36,126.35,28.26]
[1743266312903,7.97041128,126.37,126.35,28.26]
[1743266315207,7.97041128,126.37,126.35,36.1774]
[1743266315407,7.97041128,126.37,126.35,28.26]
[1743266316510,0.05391128,126.37,126.35,36.1773]
[1743266316706,0.05391128,126.37,126.35,37.34379625]
[1743266317209,0.05391128,126.37,126.35,45.26089625]
[1743266317513,0.05391128,126.37,126.35,37.34379625]
[1743266317705,0.05391128,126.37,126.36,7.9169]
[1743266319107,9.08379625,126.4,126.37,7.9159]
[1743266319310,9.08379625,126.4,126.38,28.24]
[1743266320207,9.08379625,126.39,126.34,17.00169625]
[1743266320405,9.08379625,126.38,126.35,28.24]
[1743266320605,9.08379625,126.38,126.35,28.2945924]
[1743266320912,7.9166,126.37,126.35,28.2945924]
[1743266321313,7.97554558,126.37,126.35,28.2945924]
[1743266322515,17.00069625,126.36,126.35,0.0545924]
[1743266322905,9.08379625,126.36,126.29,9.08379625]
[1743266323109,28.24,126.41,126.28,1.9728]
[1743266323110,9.08379625,126.33,126.28,1.9728]
[1743266323305,9.08379625,126.33,126.29,29.65836644]
[1743266323506,7.9203,126.31,126.29,28.24]
[1743266324208,7.97633964,126.31,126.29,28.29015332]
[1743266324407,7.9206,126.3,126.29,0.05015332]
[1743266324614,17.00439625,126.3,126.29,28.29015332]
[1743266326313,17.00439625,126.3,126.29,0.05015332]
[1743266326716,0.05603964,126.31,126.29,0.05015332]
[1743266326916,0.05603964,126.31,126.29,17.05514957]
[1743266328719,0.05603964,126.31,126.3,7.9206]
[1743266329718,0.05603964,126.31,126.3,17.00439625]
[1743266332019,0.05603964,126.31,126.29,17.05494957]
[1743266332623,0.05603964,126.31,126.29,9.13394957]
[1743266332824,0.05603964,126.31,126.3,7.9206]
[1743266335628,0.05603964,126.31,126.29,7.97115332]
[1743266335827,9.13983589,126.31,126.29,0.05015332]
[1743266336025,9.13983589,126.31,126.29,28.31015332]
[1743266336226,17.06003589,126.31,126.29,36.23135332]
[1743266337322,17.06003589,126.31,126.29,28.31015332]
[1743266337523,0.05603964,126.31,126.29,28.31015332]
[1743266337724,0.05603964,126.31,126.3,7.9206]
[1743266337923,0.05603964,126.31,126.29,37.39394957]
[1743266338131,0.05603964,126.31,126.29,28.31015332]
[1743266338426,0.05603964,126.31,126.3,28.26]
[1743266339127,17.05983589,126.31,126.3,28.26]
[1743266342221,7.97603964,126.31,126.3,28.26]
[1743266343130,0.05603964,126.31,126.3,28.26]
[1743266343831,0.05603964,126.31,126.3,36.1806]
[1743266344435,0.05603964,126.31,126.3,28.26]
[1743266344935,0.05603964,126.31,126.3,36.1806]
[1743266346634,0.05603964,126.31,126.3,45.26439625]
[1743266347333,0.05603964,126.31,126.3,36.1806]
[1743266352636,9.08379625,126.37,126.34,7.9181]
[1743266352835,9.08379625,126.38,126.34,28.26]
[1743266353237,7.9166,126.37,126.34,7.918]
[1743266353541,9.08379625,126.37,126.34,28.26]
[1743266353731,9.14021191,126.37,126.34,28.31668989]
[1743266353936,7.9172,126.36,126.34,28.31668989]
[1743266354232,9.14021191,126.37,126.34,28.31668989]
[1743266354436,7.9174,126.36,126.34,28.31668989]
[1743266356041,17.05671191,126.37,126.34,28.31668989]
[1743266356244,9.14021191,126.37,126.34,28.31668989]
[1743266356548,7.9169,126.36,126.34,28.31668989]
[1743266357346,7.97291566,126.37,126.34,36.23458989]
[1743266359948,7.9169,126.36,126.34,28.31668989]
[1743266360247,0.05641566,126.37,126.34,28.31668989]
[1743266360848,9.08379625,126.35,126.34,28.31668989]
[1743266361048,9.08379625,126.36,126.34,28.31668989]
[1743266361252,9.14021191,126.37,126.34,28.31668989]
[1743266361446,7.9171,126.36,126.34,28.31668989]
[1743266363450,7.9171,126.36,126.34,0.05668989]
[1743266363649,7.9171,126.36,126.34,28.29668989]
[1743266365850,7.9171,126.36,126.34,36.21468989]
[1743266366152,17.05681191,126.37,126.34,36.21468989]
[1743266367954,17.05681191,126.37,126.34,28.29668989]
[1743266367955,0.05641566,126.37,126.34,28.29668989]
[1743266368158,0.05641566,126.37,126.36,9.08379625]
[1743266368453,0.05641566,126.37,126.36,17.00069625]
[1743266368660,0.05641566,126.37,126.36,7.9169]
[1743266370060,0.05641566,126.37,126.36,17.00069625]
[1743266370960,0.05641566,126.37,126.35,17.00109625]
[1743266371361,7.97301566,126.37,126.34,45.29838614]
[1743266372162,7.917,126.36,126.34,45.29838614]
[1743266372461,7.917,126.36,126.34,28.29668989]
[1743266373660,7.97291566,126.37,126.34,36.21468989]
[1743266374957,7.9169,126.36,126.34,28.29668989]
[1743266377962,7.9169,126.36,126.34,36.21468989]
[1743266378467,7.97291566,126.37,126.34,36.21468989]
[1743266380568,9.08379625,126.36,126.34,28.29668989]
[1743266380772,9.08379625,126.35,126.34,28.29668989]
[1743266381070,0.05641566,126.37,126.34,37.38048614]
[1743266381368,0.05641566,126.37,126.35,9.08379625]
[1743266381766,0.05641566,126.37,126.36,7.9169]
[1743266382466,0.05641566,126.37,126.35,17.00119625]
[1743266386866,0.05641566,126.37,126.36,7.9169]
[1743266388276,0.05641566,126.37,126.35,17.00089625]
[1743266390173,9.14021191,126.37,126.34,28.29668989]
[1743266390675,7.9173,126.36,126.34,28.29668989]
[1743266392372,9.14021191,126.37,126.35,28.24]
[1743266393976,7.9169,126.36,126.34,0.05668989]
[1743266394176,7.9169,126.36,126.35,28.24]
[1743266396077,17.00069625,126.36,126.35,28.24]
[1743266396275,7.9175,126.35,126.34,0.05668989]
[1743266396475,9.08379625,126.35,126.31,28.24]
[1743266396773,4.1227,126.36,126.3,28.24]
[1743266396774,7.92,126.31,126.3,28.24]
[1743266396974,9.08379625,126.31,126.26,154.03931803]
[1743266397181,17.00629625,126.27,126.26,182.27931803]
[1743266397869,17.00629625,126.27,126.26,159.66393737]
[1743266398278,17.05656566,126.28,126.26,159.66393737]
[1743266398781,9.13436566,126.28,126.26,159.66393737]
[1743266399577,9.13436566,126.28,126.26,36.1631]
[1743266399782,0.05056941,126.28,126.26,37.32379625]
[1743266400779,0.05056941,126.28,126.27,7.9225]
[1743266401680,0.05056941,126.28,126.26,45.24669625]
[1743266401979,0.05056941,126.28,126.26,36.1629]
[1743266402581,0.05056941,126.28,126.27,28.24]
[1743266403282,0.05056941,126.28,126.27,36.1625]
[1743266403582,0.05056941,126.28,126.27,28.24]
[1743266405283,0.05056941,126.28,126.27,36.1625]
[1743266408085,0.05056941,126.28,126.27,45.24629625]
[1743266412283,0.05056941,126.28,126.27,28.24]
[1743266413585,9.13436566,126.28,126.27,28.24]
[1743266414088,17.05676566,126.28,126.27,28.24]
[1743266417695,7.9225,126.27,126.26,28.24]
[1743266417894,17.00629625,126.27,126.26,28.24]
[1743266418696,7.9231,126.26,126.25,0.05897528]
[1743266418995,9.08379625,126.26,126.21,7.9259]
[1743266419195,9.08379625,126.24,126.22,28.24]
[1743266419389,17.00799625,126.25,126.22,28.24]
[1743266419796,9.08379625,126.25,126.22,36.1656]
[1743266419997,17.00799625,126.25,126.22,36.1656]
[1743266420198,17.06246482,126.25,126.22,36.22628868]
[1743266421093,17.06246482,126.25,126.22,7.98628868]
[1743266421300,9.08379625,126.24,126.23,28.26]
[1743266421995,17.00869625,126.24,126.23,28.26]
[1743266422499,17.00869625,126.24,126.22,0.06068868]
[1743266422699,9.08379625,126.23,126.22,28.32068868]
[1743266423301,7.9249,126.24,126.22,28.32068868]
[1743266423302,17.00869625,126.24,126.22,28.32068868]
[1743266424398,17.06226482,126.25,126.22,28.32068868]
[1743266424600,0.05446857,126.25,126.22,28.32068868]
[1743266425601,7.97856857,126.25,126.22,36.24628868]
[1743266426203,7.97856857,126.25,126.23,28.26]
[1743266426401,7.9244,126.24,126.23,28.26]
[1743266429302,17.00819625,126.24,126.23,28.26]
[1743266432206,9.08379625,126.24,126.17,9.08379625]
[1743266432505,9.08379625,126.21,126.18,28.26]
[1743266433108,9.08379625,126.22,126.18,28.26]
[1743266433408,0.05095659,126.21,126.19,0.05042673]
[1743266434209,7.97745659,126.21,126.19,0.05042673]
[1743266434508,0.05095659,126.21,126.19,9.13422298]
[1743266435310,0.05095659,126.21,126.19,17.06152298]
[1743266435810,0.05095659,126.21,126.19,7.97772673]
[1743266437810,0.05095659,126.21,126.19,17.06152298]
[1743266440715,0.05095659,126.21,126.19,7.97772673]
[1743266440915,0.05095659,126.21,126.19,0.05042673]
[1743266441511,7.97755659,126.21,126.19,0.05042673]
[1743266442109,7.9269,126.2,126.19,0.05042673]
[1743266443217,17.01069625,126.2,126.19,0.05042673]
[1743266446027,7.9269,126.2,126.19,0.05042673]
[1743266446831,17.01069625,126.2,126.19,0.05042673]
[1743266447030,7.93,126.15,126.14,1.42455621]
[1743266447225,9.08379625,126.15,126.11,28.26]
[1743266447432,9.08379625,126.13,126.1,28.26]
[1743266447824,7.9323,126.12,126.1,28.26]
[1743266448225,0.05133965,126.12,126.1,28.31178456]
[1743266448421,0.05133965,126.12,126.1,37.39558081]
[1743266448625,9.08379625,126.16,126.11,17.01629625]
[1743266448825,9.08379625,126.16,126.12,9.08379625]
[1743266449026,2.1315,126.2,126.12,9.08379625]
[1743266449027,9.08379625,126.17,126.13,28.26]
[1743266449421,9.08379625,126.16,126.13,28.26]
[1743266449827,9.14197997,126.16,126.13,28.32092655]
[1743266450026,9.08379625,126.14,126.13,0.06092655]
[1743266450324,28.26,126.15,126.09,375.8154162]
[1743266450528,17.01479625,126.14,126.09,384.89921245]
[1743266450723,17.01479625,126.14,126.1,9.08379625]
[1743266450921,17.01479625,126.14,126.11,28.26]
[1743266451327,17.06581275,126.14,126.11,28.32031664]
[1743266452232,7.9316,126.13,126.11,28.32031664]
[1743266452430,0.0510165,126.14,126.11,37.40411289]
[1743266452631,7.9820165,126.14,126.11,37.40411289]
[1743266452931,0.0510165,126.14,126.11,28.32031664]
[1743266453132,7.9318,126.13,126.11,28.32031664]
[1743266453433,0.0510165,126.14,126.11,28.32031664]
[1743266453633,9.13481275,126.14,126.11,28.32031664]
[1743266454431,7.9319,126.12,126.11,28.32031664]
[1743266454630,17.01569625,126.12,126.11,0.06031664]
[1743266460434,9.08379625,126.12,126.07,28.28]
[1743266460634,9.08379625,126.1,126.07,28.28]
[1743266460833,9.08379625,126.1,126.05,9.08379625]
[1743266461127,9.08379625,126.1,126.05,37.36379625]
[1743266461429,0.05738089,126.09,126.06,0.05286582]
[1743266461627,0.05738089,126.09,126.06,28.33286582]
[1743266461832,0.05738089,126.09,126.06,37.41666207]
[1743266462033,0.05738089,126.09,126.06,45.35206207]
[1743266462636,0.05738089,126.09,126.08,9.08379625]
[1743266464340,0.05738089,126.09,126.08,17.01819625]
[1743266468040,9.08379625,126.15,126.11,7.9323]
[1743266468235,9.08379625,126.15,126.11,28.28]
[1743266468730,7.9313,126.13,126.11,28.28]
[1743266469339,7.98497625,126.13,126.11,28.33850631]
[1743266469639,0.05367625,126.13,126.11,36.27090631]
[1743266469939,0.05367625,126.13,126.11,45.35470256]
[1743266470838,7.98507625,126.13,126.11,37.42230256]
[1743266471038,0.05367625,126.13,126.11,37.42230256]
[1743266471239,7.98507625,126.13,126.11,28.33850631]
[1743266471830,7.9319,126.12,126.11,28.33850631]
[1743266472036,7.9319,126.12,126.11,0.05850631]
[1743266474144,17.01569625,126.12,126.11,0.05850631]
[1743266475244,7.9319,126.12,126.11,0.05850631]
[1743266475639,17.0690725,126.13,126.11,0.05850631]
[1743266475944,0.05367625,126.13,126.11,0.05850631]
[1743266476238,7.9319,126.12,126.11,0.05850631]
[1743266479445,0.05367625,126.13,126.11,0.05850631]
[1743266479840,0.05367625,126.13,126.11,7.99070631]
[1743266480748,0.05367625,126.13,126.12,7.9319]
[1743266480945,0.05367625,126.13,126.11,0.05850631]
[1743266481150,0.05367625,126.13,126.11,28.33850631]
[1743266481351,0.05367625,126.13,126.11,36.27080631]
[1743266482555,7.98517625,126.13,126.11,28.33850631]
[1743266483253,7.98517625,126.13,126.11,36.27100631]
[1743266483444,0.05367625,126.13,126.11,36.27100631]
[1743266483951,0.05367625,126.13,126.12,7.9319]
[1743266484150,0.05367625,126.13,126.11,28.33850631]
[1743266484750,0.05367625,126.13,126.11,36.27070631]
[1743266486056,7.98497625,126.13,126.11,36.27070631]
[1743266486555,7.98497625,126.13,126.11,28.33850631]
[1743266486855,7.9319,126.12,126.11,0.05850631]
[1743266487056,17.01569625,126.12,126.11,0.05850631]
[1743266488859,17.0689725,126.13,126.11,0.05850631]
[1743266489860,7.9319,126.12,126.11,0.05850631]
[1743266491157,0.05367625,126.13,126.11,28.33850631]
[1743266491860,0.05367625,126.13,126.11,36.27070631]
[1743266492053,0.05367625,126.13,126.11,28.33850631]
[1743266492250,0.05367625,126.13,126.12,7.9319]
[1743266504377,17.01289625,126.17,126.14,7.9304]
[1743266504574,9.08379625,126.17,126.12,9.08379625]
[1743266504773,7.9298,126.16,126.12,9.08379625]
[1743266504975,7.9298,126.16,126.13,7.9307]
[1743266505175,11.13189625,126.19,126.14,37.36379625]
[1743266505371,11.13189625,126.19,126.15,28.28]
[1743266505571,9.1404972,126.18,126.15,28.33493238]
[1743266505971,9.08379625,126.17,126.15,0.05493238]
[1743266506679,7.9294,126.16,126.15,0.05493238]
[1743266517879,17.01319625,126.16,126.15,0.05493238]
[1743266520192,17.01289625,126.17,126.15,0.05493238]
[1743266520397,9.08379625,126.17,126.15,0.05493238]
[1743266521793,7.9294,126.16,126.15,0.05493238]
[1743266528197,0.05670095,126.18,126.15,37.39872863]
[1743266529197,0.05670095,126.18,126.16,7.9291]
[1743266530304,7.98490095,126.18,126.15,45.32852863]
[1743266531006,7.9291,126.17,126.15,28.31493238]
[1743266531606,0.05670095,126.18,126.15,28.31493238]
[1743266531801,9.1404972,126.18,126.15,28.31493238]
[1743266532200,7.9294,126.16,126.15,28.31493238]
[1743266536308,17.01319625,126.16,126.15,0.05493238]
[1743266539705,7.9294,126.16,126.15,0.05493238]
[1743266541108,17.01319625,126.16,126.15,0.05493238]
[1743266546911,17.01319625,126.16,126.15,3.238e-05]
[1743266547612,17.00379625,126.16,126.07,9.08379625]
[1743266547809,9.08379625,126.1,126.06,11.17029625]
[1743266548014,9.08379625,126.1,126.06,30.3465]
[1743266548710,9.08379625,126.1,126.07,0.05700809]
[1743266548711,7.9345,126.08,126.07,0.05700809]
[1743266551917,17.01829625,126.08,126.07,0.05700809]
[1743266553712,7.9345,126.08,126.07,0.05700809]
[1743266554114,7.99331856,126.09,126.07,0.05700809]
[1743266554318,0.05931856,126.09,126.07,0.05700809]
[1743266554719,7.9344,126.08,126.07,0.05700809]
[1743266555018,0.05931856,126.09,126.07,0.05700809]
[1743266555213,7.99341856,126.09,126.07,0.05700809]
[1743266557819,7.9344,126.08,126.07,0.05700809]
[1743266560618,17.01819625,126.08,126.07,0.05700809]
[1743266562822,7.9369,126.05,126.02,29.70643113]
[1743266563026,9.08379625,126.05,126.02,28.28]
[1743266563224,9.08379625,126.05,126.01,40.3127]
[1743266563425,7.937,126.04,126.01,40.3127]
[1743266563723,7.99082172,126.04,126.01,40.37235654]
[1743266564132,0.05382172,126.04,126.02,7.9382]
[1743266566227,0.05382172,126.04,126.03,7.9376]
[1743266566830,0.05382172,126.04,126.03,17.02139625]
[1743266567128,9.08379625,126.08,126.05,7.9358]
[1743266567333,17.01859625,126.08,126.05,36.2158]
[1743266567628,9.08379625,126.08,126.05,36.2158]
[1743266568126,17.01849625,126.08,126.05,36.2158]
[1743266568425,17.0710105,126.08,126.05,36.26585155]
[1743266570229,7.9351,126.07,126.05,28.33005155]
[1743266571225,17.0710105,126.08,126.05,36.26635155]
[1743266571724,9.1363105,126.08,126.06,7.9356]
[1743266571930,0.05251425,126.08,126.06,7.9356]
[1743266572525,7.98711425,126.08,126.05,36.26625155]
[1743266572726,0.05251425,126.08,126.06,9.08379625]
[1743266573121,0.05251425,126.08,126.07,7.9351]
[1743266573619,0.05251425,126.08,126.06,17.01909625]
[1743266573822,0.05251425,126.08,126.06,7.9353]
[1743266574022,0.05251425,126.08,126.05,37.4138478]
[1743266574333,7.98731425,126.08,126.05,36.26625155]
[1743266574927,7.9351,126.07,126.05,28.33005155]
[1743266575328,7.98721425,126.08,126.05,28.33005155]
[1743266575729,7.98721425,126.08,126.05,36.26605155]
[1743266579630,0.05251425,126.08,126.05,28.33005155]
[1743266580537,0.05251425,126.08,126.06,7.9353]
[1743266581541,0.05251425,126.08,126.07,7.9351]
[1743266581837,0.05251425,126.08,126.05,37.4138478]
[1743266582137,0.05251425,126.08,126.06,7.9354]
[1743266583537,0.05251425,126.08,126.07,7.9351]
[1743266587541,0.05251425,126.08,126.06,11.8628]
[1743266588848,7.98691425,126.08,126.06,11.8628]
[1743266589543,7.98691425,126.08,126.06,3.9274]
[1743266590245,0.05251425,126.08,126.06,7.9357]
[1743266593040,0.05251425,126.08,126.07,7.9351]
[1743266593243,9.08379625,126.12,126.07,9.08379625]
[1743266593441,9.08379625,126.12,126.08,28.26]
[1743266593645,9.08379625,126.13,126.08,37.34379625]
[1743266593946,9.08379625,126.14,126.1,9.08379625]
[1743266594154,270.72379625,126.15,126.11,36.1922]
[1743266594346,0.05978358,126.13,126.11,28.31218767]
[1743266594745,7.99108358,126.13,126.11,28.31218767]
[1743266596047,0.05978358,126.13,126.11,36.24438767]
[1743266596255,0.05978358,126.13,126.11,28.31218767]
[1743266596752,0.05978358,126.13,126.11,45.32828392]
[1743266597949,7.99118358,126.13,126.11,37.39598392]
[1743266598150,7.99118358,126.13,126.11,28.31218767]
[1743266598852,7.9319,126.12,126.11,28.31218767]
[1743266599455,17.07517983,126.13,126.11,28.31218767]
[1743266599654,7.99138358,126.13,126.11,28.31218767]
[1743266600756,0.05978358,126.13,126.11,36.24438767]
[1743266601061,0.05978358,126.13,126.11,28.31218767]
[1743266602353,0.05978358,126.13,126.11,36.24438767]
[1743266605160,0.05978358,126.13,126.11,28.31218767]
[1743266605365,9.08379625,126.12,126.11,28.31218767]
[1743266606063,17.01569625,126.12,126.11,28.31218767]
[1743266607359,17.01569625,126.12,126.11,0.05218767]
[1743266615167,7.9346,126.08,126.07,28.26]
[1743266615363,17.01839625,126.08,126.07,28.26]
[1743266618075,7.9346,126.08,126.07,28.26]
[1743266621777,7.9346,126.08,126.06,0.05312834]
[1743266621978,7.9346,126.08,126.06,28.31312834]
[1743266622182,7.9346,126.08,126.06,36.24872834]
[1743266623874,9.13426157,126.09,126.07,9.08379625]
[1743266623875,0.05046532,126.09,126.07,9.08379625]
[1743266624680,0.05046532,126.09,126.08,7.9344]
[1743266624983,7.9329,126.11,126.08,17.01819625]
[1743266625277,7.9329,126.11,126.09,28.26]
[1743266626176,7.98937412,126.11,126.09,28.32045358]
[1743266633285,7.9332,126.1,126.09,28.32045358]
[1743266633786,17.01699625,126.1,126.09,0.06045358]
[1743266643194,9.08379625,126.1,126.02,35.66788008]
[1743266643398,9.08379625,126.06,126.03,1.42626015]
[1743266643588,9.08379625,126.06,126.03,29.68626015]
[1743266643789,9.08379625,126.06,126.03,28.26]
[1743266643987,7.9367,126.05,126.02,11.9195]
[1743266644190,9.08379625,126.04,126.03,1.4263021]
[1743266644396,9.08379625,126.04,126.02,0.0561167]
[1743266645090,9.14266962,126.05,126.02,0.0561167]
[1743266645291,7.9374,126.04,126.02,0.0561167]
[1743266646595,0.05887337,126.05,126.02,0.0561167]
[1743266646795,0.05887337,126.05,126.04,9.08379625]
[1743266647093,0.05887337,126.05,126.04,37.34379625]
[1743266647688,0.05887337,126.05,126.04,45.28079625]
[1743266648495,17.01799625,126.09,126.04,37.34379625]
[1743266648694,17.01799625,126.09,126.05,9.08379625]
[1743266649098,17.01799625,126.09,126.06,7.9356]
[1743266649303,17.01799625,126.09,126.07,28.26]
[1743266649697,17.07488239,126.09,126.07,28.3130546]
[1743266650903,0.05688614,126.09,126.07,36.2480546]
[1743266651899,7.99068614,126.09,126.07,36.2480546]
[1743266652204,0.05688614,126.09,126.07,36.2480546]
[1743266655606,7.99068614,126.09,126.07,36.2480546]
[1743266655804,9.08379625,126.08,126.07,28.3130546]
[1743266656306,17.01819625,126.08,126.07,28.3130546]
[1743266656706,9.08379625,126.08,126.07,28.3130546]
[1743266656913,9.14068239,126.09,126.07,28.3130546]
[1743266657310,7.99098614,126.09,126.07,28.3130546]
[1743266660314,7.9344,126.08,126.07,28.3130546]
[1743266660715,17.01819625,126.08,126.07,28.3130546]
[1743266661215,7.9361,126.06,126.05,28.26]
[1743266661410,9.08379625,126.06,126.05,28.26]
[1743266662415,9.13602589,126.07,126.05,28.26]
[1743266662816,9.13602589,126.07,126.05,28.31784913]
[1743266663016,17.07152589,126.07,126.05,28.31784913]
[1743266663717,7.9357,126.06,126.05,0.05784913]
[1743266664510,0.05222964,126.07,126.05,0.05784913]
[1743266665214,0.05222964,126.07,126.05,7.99384913]
[1743266667518,0.05222964,126.07,126.05,0.05784913]
[1743266667721,9.13602589,126.07,126.05,0.05784913]
[1743266668120,17.01949625,126.06,126.05,0.05784913]
[1743266670723,7.9378,126.03,126.0,4.174]
[1743266670922,7.9378,126.03,126.01,28.26]
[1743266671928,7.9950056,126.03,126.01,28.31748987]
[1743266672221,17.07880185,126.03,126.01,0.05748987]
[1743266672421,17.07880185,126.03,126.01,28.31748987]
[1743266675427,17.07880185,126.03,126.01,0.05748987]
[1743266675923,0.0572056,126.03,126.02,17.02199625]